fUSD/lending_fUSD_20250205
["ID","MTS","AMOUNT","RATE_DAILY","PERIOD"]
[351733550,1738770660436,-500.0,0.00010546,2]
[351733551,1738770660445,-500.0,0.00010546,2]
[351733552,1738770660455,-500.0,0.00010546,2]
[351733553,1738770660464,-500.0,0.00010546,2]
[351733554,1738770660474,-802.39,0.00010546,2]
[351733555,1738770660484,-500.0,0.00010546,2]
[351733556,1738770660493,-1382.83,0.00010546,2]
[351733557,1738770660502,-500.0,0.00010546,2]
[351733558,1738770660512,-1400.23,0.00010546,2]
[351733559,1738770660522,-745.53,0.00010546,2]
[351733560,1738770660531,-707.14,0.00010546,2]
[351733561,1738770660541,-1118.15,0.00010546,2]
[351733562,1738770660550,-826.65,0.00010546,2]
[351733563,1738770660560,-721.92,0.00010546,2]
[351733564,1738770660570,-1111.61,0.00010546,2]
[351733565,1738770660580,-801.84,0.00010546,2]
[351733566,1738770660590,-500.0,0.00010546,2]
[351733567,1738770660599,-500.0,0.00010546,2]
[351733568,1738770660611,-969.53,0.00010546,2]
[351733569,1738770660621,-500.0,0.00010546,2]
[351733570,1738770660630,-500.0,0.00010546,2]
[351733571,1738770660640,-500.0,0.00010546,2]
[351733572,1738770660650,-902.57,0.00010546,2]
[351733573,1738770660660,-500.0,0.00010546,2]
[351733574,1738770660670,-500.0,0.00010546,2]
[351733575,1738770660680,-1168.87,0.00010546,2]
[351733576,1738770660689,-500.0,0.00010546,2]
[351733577,1738770660699,-1387.9,0.00010546,2]
[351733578,1738770660708,-174.73,0.00010546,2]
[351733579,1738770660718,-1060.41,0.00010547,2]
[351733580,1738770660728,-758.92,0.00010547,2]
[351733581,1738770660738,-757.71,0.00010547,2]
[351733582,1738770660747,-500.0,0.00010547,2]
[351733583,1738770660757,-1429.12,0.00010547,2]
[351733584,1738770660813,-1425.5,0.00010547,2]
[351733585,1738770660823,-1244.98,0.00010547,2]
[351733586,1738770660832,-1283.65,0.00010547,2]
[351733587,1738770660843,-3135.32,0.00010547,2]
[351733588,1738770660852,-500.0,0.00010547,2]
[351733589,1738770660863,-3428.69,0.00010547,2]
[351733590,1738770660872,-500.0,0.00010547,2]
[351733591,1738770660882,-1299.19,0.00010547,2]
[351733592,1738770660892,-1145.57,0.00010547,2]
[351733593,1738770660901,-1194.71,0.00010547,2]
[351733594,1738770660912,-739.14,0.00010547,2]
[351733595,1738770660922,-2567.97,0.00010547,2]
[351733596,1738770660931,-500.0,0.00010547,2]
[351733597,1738770660942,-853.27,0.00010547,2]
[351733598,1738770660951,-1570.67,0.00010547,2]
[351733599,1738770660961,-2103.34,0.00010547,2]
[351733600,1738770660971,-1000.0,0.00010547,2]
[351733601,1738770660981,-520.86,0.00010547,2]
[351733602,1738770660990,-1711.72,0.00010547,2]
[351733603,1738770661000,-748.36744206,0.00010567,2]
[351733604,1738770661012,-153.702068,0.00010584,3]
[351733605,1738770661022,-151.55,0.00010597,2]
[351733606,1738770661031,-1109.86,0.00010616,2]
[351733607,1738770661042,-601.45,0.00010616,2]
[351733608,1738770661052,-651.5,0.00010616,2]
[351733609,1738770661062,-2690.41,0.00010616,2]
[351733610,1738770661072,-209.23,0.00010616,2]
[351733611,1738770661082,-1927.8,0.00010616,2]
[351733612,1738770661093,-1684.83,0.00010616,2]
[351733613,1738770661105,-1968.47,0.00010616,2]
[351733614,1738770661122,-1487.65,0.00010616,2]
[351733615,1738770661131,-1200.92,0.00010616,2]
[351733616,1738770661140,-2590.26,0.00010616,2]
[351733617,1738770661151,-3157.9,0.00010616,2]
[351733618,1738770661160,-1135.45,0.00010616,2]
[351733619,1738770661169,-553.43,0.00010616,2]
[351733620,1738770661180,-2633.64,0.00010616,2]
[351733621,1738770661190,-1119.78,0.00010616,2]
[351733622,1738770661199,-1006.46,0.00010616,2]
[351733623,1738770661209,-397.9,0.00010616,2]
[351733624,1738770661220,-1737.61,0.00010616,2]
[351733625,1738770661229,-2022.8,0.00010616,2]
[351733626,1738770661239,-668.09,0.00010616,2]
[351733627,1738770661248,-587.82,0.00010616,2]
[351733628,1738770661258,-500.0,0.00010616,2]
[351733629,1738770661268,-445.0,0.0001065,2]
[351733630,1738770661278,-500.0,0.00010681,2]
[351733631,1738770661288,-523.387043,0.00010682,2]
[351733632,1738770661297,-515.889473,0.00010682,2]
[351733633,1738770661306,-1126.69,0.00010682,2]
[351733634,1738770661316,-1018.07,0.00010682,2]
[351733635,1738770661325,-1111.66,0.00010682,2]
[351733636,1738770661335,-908.3,0.00010682,2]
[351733637,1738770661345,-1020.86,0.00010682,2]
[351733638,1738770661355,-2757.85,0.00010682,2]
[351733639,1738770661366,-500.0,0.00010682,2]
[351733640,1738770661375,-778.98,0.00010682,2]
[351733641,1738770661385,-1433.93,0.00010682,2]
[351733642,1738770661395,-1530.38,0.00010682,2]
[351733643,1738770661406,-589.89,0.00010682,2]
[351733644,1738770661415,-2425.07,0.00010682,2]
[351733645,1738770661425,-1082.03,0.00010682,2]
[351733646,1738770661435,-1820.02,0.00010682,2]
[351733647,1738770661444,-921.5,0.00010682,2]
[351733648,1738770661453,-2070.11,0.00010682,2]
[351733649,1738770661463,-500.0,0.00010682,2]
[351733650,1738770661471,-500.0,0.00010682,2]
[351733651,1738770661480,-1845.69,0.00010682,2]
[351733652,1738770661490,-1760.24,0.00010682,2]
[351733653,1738770661500,-761.1,0.00010682,2]
[351733654,1738770661510,-2654.05,0.00010682,2]
[351733655,1738770661520,-1672.03,0.00010682,2]
[351733656,1738770661530,-2982.03,0.00010682,2]
[351733657,1738770661540,-1673.58,0.00010682,2]
[351733658,1738770661549,-2307.76,0.00010682,2]
[351733659,1738770661560,-1855.54,0.00010682,2]
[351733660,1738770661569,-2958.38,0.00010682,2]
[351733661,1738770661579,-2623.09,0.00010682,2]
[351733662,1738770661589,-1036.56,0.00010682,2]
[351733663,1738770661598,-2084.26,0.00010682,2]
[351733664,1738770661610,-1013.94,0.00010682,2]
[351733665,1738770661632,-1161.41,0.00010682,2]
[351733666,1738770661640,-500.0,0.00010682,2]
[351733667,1738770661650,-1354.82,0.00010682,2]
[351733668,1738770661659,-3316.09,0.00010682,2]
[351733669,1738770661668,-500.0,0.00010682,2]
[351733670,1738770661678,-2075.83,0.00010682,2]
[351733671,1738770661687,-500.0,0.00010682,2]
[351733672,1738770661696,-2436.56,0.00010682,2]
[351733673,1738770661705,-1343.72,0.00010682,2]
[351733674,1738770661715,-1245.1,0.00010682,2]
[351733675,1738770661725,-500.0,0.00010683,2]
[351733676,1738770661735,-408.78495579,0.00010683,2]
[351733677,1738770661744,-596.28,0.00010683,2]
[351733678,1738770661753,-500.0,0.00010683,2]
[351733679,1738770661762,-311.75297254,0.00010683,2]
[351733680,1738770661772,-1332.61,0.00010683,2]
[351733681,1738770661781,-500.0,0.00010683,2]
[351733682,1738770661790,-1095.47,0.00010683,2]
[351733683,1738770661800,-678.16,0.00010683,2]
[351733684,1738770661809,-563.16,0.00010683,2]
[351733685,1738770661818,-749.13,0.00010683,2]
[351733686,1738770661827,-607.4,0.00010683,2]
[351733687,1738770661836,-900.55,0.00010683,2]
[351733688,1738770661846,-1434.78,0.00010683,2]
[351733689,1738770661856,-576.8,0.00010683,2]
[351733690,1738770661867,-706.22,0.00010683,2]
[351733691,1738770661876,-441.93,0.00010683,2]
[351733692,1738770661886,-684.39,0.00010683,2]
[351733693,1738770661895,-1039.07,0.00010683,2]
[351733694,1738770661905,-1018.32,0.00010683,2]
[351733695,1738770661915,-897.3,0.00010683,2]
[351733696,1738770661925,-673.69,0.00010683,2]
[351733697,1738770661935,-1041.58,0.00010683,2]
[351733698,1738770661944,-451.77,0.00010683,2]
[351733699,1738770661954,-500.0,0.00010683,2]
[351733700,1738770661964,-534.42,0.00010683,2]
[351733701,1738770661974,-740.11,0.00010683,2]
[351733702,1738770661983,-1557.89,0.00010683,2]
[351733703,1738770661994,-731.82,0.00010683,2]
[351733704,1738770662003,-721.17,0.00010683,2]
[351733705,1738770662019,-500.0,0.00010683,2]
[351733706,1738770662029,-519.49,0.00010683,2]
[351733707,1738770662039,-829.1,0.00010683,2]
[351733708,1738770662049,-858.89,0.00010683,2]
[351733709,1738770662058,-500.0,0.00010683,2]
[351733710,1738770662068,-921.22,0.00010683,2]
[351733711,1738770662078,-500.0,0.00010683,2]
[351733712,1738770662089,-946.31,0.00010683,2]
[351733713,1738770662102,-500.0,0.00010683,2]
[351733714,1738770662116,-500.0,0.00010683,2]
[351733715,1738770662125,-500.0,0.00010683,2]
[351733716,1738770662134,-500.0,0.00010683,2]
[351733717,1738770662143,-802.39,0.00010683,2]
[351733718,1738770662151,-368.24,0.00010683,2]
[351733719,1738770662161,-1382.83,0.00010683,2]
[351733720,1738770662170,-500.0,0.00010683,2]
[351733721,1738770662180,-1400.23,0.00010683,2]
[351733722,1738770662189,-745.53,0.00010683,2]
[351733723,1738770662199,-707.14,0.00010683,2]
[351733724,1738770662210,-1118.15,0.00010683,2]
[351733725,1738770662221,-826.65,0.00010683,2]
[351733726,1738770662231,-721.92,0.00010683,2]
[351733727,1738770662241,-1111.61,0.00010683,2]
[351733728,1738770662251,-801.84,0.00010683,2]
[351733729,1738770662261,-500.0,0.00010683,2]
[351733730,1738770662270,-500.0,0.00010683,2]
[351733731,1738770662280,-969.53,0.00010683,2]
[351733732,1738770662290,-500.0,0.00010683,2]
[351733733,1738770662300,-500.0,0.00010683,2]
[351733734,1738770662310,-500.0,0.00010683,2]
[351733735,1738770662320,-902.57,0.00010683,2]
[351733736,1738770662329,-500.0,0.00010683,2]
[351733737,1738770662339,-500.0,0.00010683,2]
[351733738,1738770662348,-1168.87,0.00010683,2]
[351733739,1738770662358,-500.0,0.00010683,2]
[351733740,1738770662368,-1387.9,0.00010683,2]
[351733741,1738770662377,-151.0,0.00010684,2]
[351733742,1738770662387,-185.99701,0.00010684,2]
[351733743,1738770662396,-185.99701,0.00010684,2]
[351733744,1738770662405,-1060.41,0.00010684,2]
[351733745,1738770662414,-758.92,0.00010684,2]
[351733746,1738770662424,-757.71,0.00010684,2]
[351733747,1738770662435,-500.0,0.00010684,2]
[351733748,1738770662445,-1429.12,0.00010684,2]
[351733749,1738770662455,-1425.5,0.00010684,2]
[351733750,1738770662465,-1244.98,0.00010684,2]
[351733751,1738770662475,-1283.65,0.00010684,2]
[351733752,1738770662485,-3135.32,0.00010684,2]
[351733753,1738770662494,-500.0,0.00010684,2]
[351733754,1738770662504,-3428.69,0.00010684,2]
[351733755,1738770662514,-500.0,0.00010684,2]
[351733756,1738770662524,-1299.19,0.00010684,2]
[351733757,1738770662534,-1145.57,0.00010684,2]
[351733758,1738770662543,-1194.71,0.00010684,2]
[351733759,1738770662553,-739.14,0.00010684,2]
[351733760,1738770662563,-2567.97,0.00010684,2]
[351733761,1738770662572,-500.0,0.00010684,2]
[351733762,1738770662582,-853.27,0.00010684,2]
[351733763,1738770662592,-1570.67,0.00010684,2]
[351733764,1738770662602,-2103.34,0.00010684,2]
[351733765,1738770662613,-1000.0,0.00010684,2]
[351733766,1738770662622,-520.86,0.00010684,2]
[351733767,1738770662632,-1711.72,0.00010684,2]
[351733768,1738770662642,-257.09838495,0.000107,2]
[351733769,1738770662660,-152.0,0.00010701,4]
[351733770,1738770662670,-1109.86,0.00010753,2]
[351733771,1738770662680,-601.45,0.00010753,2]
[351733772,1738770662689,-651.5,0.00010753,2]
[351733773,1738770662698,-2690.41,0.00010753,2]
[351733774,1738770662708,-1927.8,0.00010753,2]
[351733775,1738770662717,-1684.83,0.00010753,2]
[351733776,1738770662727,-1968.47,0.00010753,2]
[351733777,1738770662736,-1487.65,0.00010753,2]
[351733778,1738770662746,-1200.92,0.00010753,2]
[351733779,1738770662756,-2590.26,0.00010753,2]
[351733780,1738770662765,-3157.9,0.00010753,2]
[351733781,1738770662776,-1135.45,0.00010753,2]
[351733782,1738770662785,-553.43,0.00010753,2]
[351733783,1738770662795,-2633.64,0.00010753,2]
[351733784,1738770662805,-1119.78,0.00010753,2]
[351733785,1738770662815,-1006.46,0.00010753,2]
[351733786,1738770662825,-1737.61,0.00010753,2]
[351733787,1738770662835,-2022.8,0.00010753,2]
[351733788,1738770662844,-668.09,0.00010753,2]
[351733789,1738770662853,-587.82,0.00010753,2]
[351733790,1738770662864,-500.0,0.00010753,2]
[351733791,1738770662874,-445.0,0.0001079,2]
[351733792,1738770662883,-770.75265837,0.000108,2]
[351733793,1738770662892,-1500.0,0.000108,3]
[351733794,1738770662903,-3724.1182,0.000108,2]
[351733795,1738770662913,-500.0,0.00010818,2]
[351733796,1738770662922,-523.387043,0.00010819,2]
[351733797,1738770662932,-515.889473,0.00010819,2]
[351733798,1738770662942,-152.922915,0.00010819,2]
[351733799,1738770662951,-1126.69,0.00010819,2]
[351733800,1738770662960,-1018.07,0.00010819,2]
[351733801,1738770662970,-1111.66,0.00010819,2]
[351733802,1738770662980,-908.3,0.00010819,2]
[351733803,1738770662990,-1020.86,0.00010819,2]
[351733804,1738770663001,-2757.85,0.00010819,2]
[351733805,1738770663015,-500.0,0.00010819,2]
[351733806,1738770663026,-778.98,0.00010819,2]
[351733807,1738770663036,-1433.93,0.00010819,2]
[351733808,1738770663048,-1530.38,0.00010819,2]
[351733809,1738770663058,-589.89,0.00010819,2]
[351733810,1738770663069,-2425.07,0.00010819,2]
[351733811,1738770663079,-1082.03,0.00010819,2]
[351733812,1738770663090,-1820.02,0.00010819,2]
[351733813,1738770663102,-921.5,0.00010819,2]
[351733814,1738770663117,-2070.11,0.00010819,2]
[351733815,1738770663128,-500.0,0.00010819,2]
[351733816,1738770663138,-211.71,0.00010819,2]
[351733817,1738770663151,-1845.69,0.00010819,2]
[351733818,1738770663162,-1760.24,0.00010819,2]
[351733819,1738770663174,-761.1,0.00010819,2]
[351733820,1738770663184,-2654.05,0.00010819,2]
[351733821,1738770663194,-1672.03,0.00010819,2]
[351733822,1738770663205,-2982.03,0.00010819,2]
[351733823,1738770663215,-1673.58,0.00010819,2]
[351733824,1738770663226,-2307.76,0.00010819,2]
[351733825,1738770663236,-1855.54,0.00010819,2]
[351733826,1738770663247,-2958.38,0.00010819,2]
[351733827,1738770663257,-2623.09,0.00010819,2]
[351733828,1738770663267,-1036.56,0.00010819,2]
[351733829,1738770663278,-2084.26,0.00010819,2]
[351733830,1738770663289,-1013.94,0.00010819,2]
[351733831,1738770663299,-1161.41,0.00010819,2]
[351733832,1738770663311,-500.0,0.00010819,2]
[351733833,1738770663322,-1354.82,0.00010819,2]
[351733834,1738770663332,-3316.09,0.00010819,2]
[351733835,1738770663342,-500.0,0.00010819,2]
[351733836,1738770663353,-2075.83,0.00010819,2]
[351733837,1738770663367,-500.0,0.00010819,2]
[351733838,1738770663378,-2436.56,0.00010819,2]
[351733839,1738770663388,-1343.72,0.00010819,2]
[351733840,1738770663398,-1245.1,0.00010819,2]
[351733841,1738770663409,-500.0,0.0001082,2]
[351733842,1738770663420,-596.28,0.0001082,2]
[351733843,1738770663430,-500.0,0.0001082,2]
[351733844,1738770663441,-1332.61,0.0001082,2]
[351733845,1738770663451,-500.0,0.0001082,2]
[351733846,1738770663461,-1095.47,0.0001082,2]
[351733847,1738770663471,-678.16,0.0001082,2]
[351733848,1738770663482,-563.16,0.0001082,2]
[351733849,1738770663492,-749.13,0.0001082,2]
[351733850,1738770663502,-607.4,0.0001082,2]
[351733851,1738770663512,-900.55,0.0001082,2]
[351733852,1738770663523,-1434.78,0.0001082,2]
[351733853,1738770663534,-576.8,0.0001082,2]
[351733854,1738770663545,-706.22,0.0001082,2]
[351733855,1738770663555,-684.39,0.0001082,2]
[351733856,1738770663565,-1039.07,0.0001082,2]
[351733857,1738770663575,-1018.32,0.0001082,2]
[351733858,1738770663586,-897.3,0.0001082,2]
[351733859,1738770663597,-673.69,0.0001082,2]
[351733860,1738770663607,-1041.58,0.0001082,2]
[351733861,1738770663622,-500.0,0.0001082,2]
[351733862,1738770663632,-534.42,0.0001082,2]
[351733863,1738770663642,-740.11,0.0001082,2]
[351733864,1738770663653,-1557.89,0.0001082,2]
[351733865,1738770663663,-731.82,0.0001082,2]
[351733866,1738770663672,-721.17,0.0001082,2]
[351733867,1738770663683,-500.0,0.0001082,2]
[351733868,1738770663693,-519.49,0.0001082,2]
[351733869,1738770663703,-829.1,0.0001082,2]
[351733870,1738770663713,-858.89,0.0001082,2]
[351733871,1738770663723,-500.0,0.0001082,2]
[351733872,1738770663732,-921.22,0.0001082,2]
[351733873,1738770663743,-500.0,0.0001082,2]
[351733874,1738770663753,-946.31,0.0001082,2]
[351733875,1738770663764,-500.0,0.0001082,2]
[351733876,1738770663774,-500.0,0.0001082,2]
[351733877,1738770663784,-568.08,0.0001082,2]
[351733878,1738770663794,-500.0,0.0001082,2]
[351733879,1738770663804,-802.39,0.0001082,2]
[351733880,1738770663814,-1382.83,0.0001082,2]
[351733881,1738770663824,-500.0,0.0001082,2]
[351733882,1738770663834,-1400.23,0.0001082,2]
[351733883,1738770663844,-745.53,0.0001082,2]
[351733884,1738770663855,-707.14,0.0001082,2]
[351733885,1738770663866,-1118.15,0.0001082,2]
[351733886,1738770663877,-826.65,0.0001082,2]
[351733887,1738770663887,-721.92,0.0001082,2]
[351733888,1738770663898,-1111.61,0.0001082,2]
[351733889,1738770663909,-801.84,0.0001082,2]
[351733890,1738770663919,-500.0,0.0001082,2]
[351733891,1738770663930,-500.0,0.0001082,2]
[351733892,1738770663940,-969.53,0.0001082,2]
[351733893,1738770663950,-620.86,0.0001082,2]
[351733894,1738770663961,-500.0,0.0001082,2]
[351733895,1738770663972,-500.0,0.0001082,2]
[351733896,1738770663983,-902.57,0.0001082,2]
[351733897,1738770663994,-500.0,0.0001082,2]
[351733898,1738770664004,-500.0,0.0001082,2]
[351733899,1738770664018,-1168.87,0.0001082,2]
[351733900,1738770664029,-500.0,0.0001082,2]
[351733901,1738770664040,-1387.9,0.0001082,2]
[351733902,1738770664052,-1060.41,0.00010821,2]
[351733903,1738770664063,-758.92,0.00010821,2]
[351733904,1738770664075,-757.71,0.00010821,2]
[351733905,1738770664087,-500.0,0.00010821,2]
[351733906,1738770664099,-1429.12,0.00010821,2]
[351733907,1738770664112,-1425.5,0.00010821,2]
[351733908,1738770664124,-1244.98,0.00010821,2]
[351733909,1738770664135,-1283.65,0.00010821,2]
[351733910,1738770664145,-3135.32,0.00010821,2]
[351733911,1738770664156,-500.0,0.00010821,2]
[351733912,1738770664167,-3428.69,0.00010821,2]
[351733913,1738770664178,-579.56,0.00010821,2]
[351733914,1738770664189,-1299.19,0.00010821,2]
[351733915,1738770664201,-1145.57,0.00010821,2]
[351733916,1738770664211,-1194.71,0.00010821,2]
[351733917,1738770664222,-739.14,0.00010821,2]
[351733918,1738770664232,-2567.97,0.00010821,2]
[351733919,1738770664243,-500.0,0.00010821,2]
[351733920,1738770664254,-853.27,0.00010821,2]
[351733921,1738770664265,-1570.67,0.00010821,2]
[351733922,1738770664275,-2103.34,0.00010821,2]
[351733923,1738770664285,-1000.0,0.00010821,2]
[351733924,1738770664296,-520.86,0.00010821,2]
[351733925,1738770664307,-1711.72,0.00010821,2]
[351733926,1738770664317,-500.0,0.00010849,2]
[351733927,1738770664326,-321.37,0.00010876,2]
[351733928,1738770664337,-1109.86,0.0001089,2]
[351733929,1738770664347,-601.45,0.0001089,2]
[351733930,1738770664358,-651.5,0.0001089,2]
[351733931,1738770664371,-2690.41,0.0001089,2]
[351733932,1738770664381,-1927.8,0.0001089,2]
[351733933,1738770664392,-1684.83,0.0001089,2]
[351733934,1738770664403,-1968.47,0.0001089,2]
[351733935,1738770664414,-1487.65,0.0001089,2]
[351733936,1738770664424,-1200.92,0.0001089,2]
[351733937,1738770664435,-2590.26,0.0001089,2]
[351733938,1738770664446,-3157.9,0.0001089,2]
[351733939,1738770664457,-1135.45,0.0001089,2]
[351733940,1738770664467,-553.43,0.0001089,2]
[351733941,1738770664477,-2633.64,0.0001089,2]
[351733942,1738770664488,-1119.78,0.0001089,2]
[351733943,1738770664497,-1006.46,0.0001089,2]
[351733944,1738770664507,-1737.61,0.0001089,2]
[351733945,1738770664517,-2022.8,0.0001089,2]
[351733946,1738770664526,-668.09,0.0001089,2]
[351733947,1738770664536,-587.82,0.0001089,2]
[351733948,1738770664546,-500.0,0.0001089,2]
[351733949,1738770664555,-185.99701,0.00010891,2]
[351733950,1738770664566,-185.99701,0.00010891,2]
[351733951,1738770664576,-656.49389047,0.00010895,2]
[351733952,1738770664586,-748.36744206,0.000109,2]
[351733953,1738770664595,-500.0,0.000109,3]
[351733954,1738770664605,-25475.32075686,0.000109,2]
[351733955,1738770664616,-2699.91360943,0.000109,2]
[351733956,1738770664626,-445.0,0.0001092,2]
[351733957,1738770664635,-152.0,0.00010922,5]
[351733958,1738770664646,-500.0,0.00010955,2]
[351733959,1738770664656,-523.387043,0.00010956,2]
[351733960,1738770664666,-515.889473,0.00010956,2]
[351733961,1738770664676,-1126.69,0.00010956,2]
[351733962,1738770664686,-1018.07,0.00010956,2]
[351733963,1738770664696,-1111.66,0.00010956,2]
[351733964,1738770664707,-908.3,0.00010956,2]
[351733965,1738770664717,-1020.86,0.00010956,2]
[351733966,1738770664727,-2757.85,0.00010956,2]
[351733967,1738770664737,-500.0,0.00010956,2]
[351733968,1738770664746,-778.98,0.00010956,2]
[351733969,1738770664756,-1433.93,0.00010956,2]
[351733970,1738770664766,-1530.38,0.00010956,2]
[351733971,1738770664776,-589.89,0.00010956,2]
[351733972,1738770664786,-2425.07,0.00010956,2]
[351733973,1738770664795,-1082.03,0.00010956,2]
[351733974,1738770664805,-1820.02,0.00010956,2]
[351733975,1738770664815,-921.5,0.00010956,2]
[351733976,1738770664825,-2070.11,0.00010956,2]
[351733977,1738770664836,-500.0,0.00010956,2]
[351733978,1738770664846,-1845.69,0.00010956,2]
[351733979,1738770664856,-1760.24,0.00010956,2]
[351733980,1738770664868,-761.1,0.00010956,2]
[351733981,1738770664878,-2654.05,0.00010956,2]
[351733982,1738770664889,-1672.03,0.00010956,2]
[351733983,1738770664899,-2982.03,0.00010956,2]
[351733984,1738770664908,-1673.58,0.00010956,2]
[351733985,1738770664919,-2307.76,0.00010956,2]
[351733986,1738770664929,-1855.54,0.00010956,2]
[351733987,1738770664939,-2958.38,0.00010956,2]
[351733988,1738770664949,-2623.09,0.00010956,2]
[351733989,1738770664959,-1036.56,0.00010956,2]
[351733990,1738770664969,-2084.26,0.00010956,2]
[351733991,1738770664979,-1013.94,0.00010956,2]
[351733992,1738770664989,-1161.41,0.00010956,2]
[351733993,1738770665000,-500.0,0.00010956,2]
[351733994,1738770665012,-1354.82,0.00010956,2]
[351733995,1738770665022,-3316.09,0.00010956,2]
[351733996,1738770665032,-500.0,0.00010956,2]
[351733997,1738770665042,-2075.83,0.00010956,2]
[351733998,1738770665054,-567.29,0.00010956,2]
[351733999,1738770665064,-2436.56,0.00010956,2]
[351734000,1738770665074,-1343.72,0.00010956,2]
[351734001,1738770665085,-1245.1,0.00010956,2]
[351734002,1738770665095,-500.0,0.00010957,2]
[351734003,1738770665106,-151.0,0.00010957,2]
[351734004,1738770665118,-596.28,0.00010957,2]
[351734005,1738770665128,-500.0,0.00010957,2]
[351734006,1738770665138,-1332.61,0.00010957,2]
[351734007,1738770665148,-500.0,0.00010957,2]
[351734008,1738770665159,-1095.47,0.00010957,2]
[351734009,1738770665169,-678.16,0.00010957,2]
[351734010,1738770665179,-563.16,0.00010957,2]
[351734011,1738770665189,-749.13,0.00010957,2]
[351734012,1738770665198,-607.4,0.00010957,2]
[351734013,1738770665208,-900.55,0.00010957,2]
[351734014,1738770665218,-1434.78,0.00010957,2]
[351734015,1738770665229,-576.8,0.00010957,2]
[351734016,1738770665240,-706.22,0.00010957,2]
[351734017,1738770665250,-684.39,0.00010957,2]
[351734018,1738770665261,-1039.07,0.00010957,2]
[351734019,1738770665271,-1018.32,0.00010957,2]
[351734020,1738770665281,-897.3,0.00010957,2]
[351734021,1738770665291,-673.69,0.00010957,2]
[351734022,1738770665301,-1041.58,0.00010957,2]
[351734023,1738770665310,-500.0,0.00010957,2]
[351734024,1738770665321,-534.42,0.00010957,2]
[351734025,1738770665331,-740.11,0.00010957,2]
[351734026,1738770665341,-1557.89,0.00010957,2]
[351734027,1738770665351,-731.82,0.00010957,2]
[351734028,1738770665362,-721.17,0.00010957,2]
[351734029,1738770665372,-500.0,0.00010957,2]
[351734030,1738770665382,-519.49,0.00010957,2]
[351734031,1738770665392,-829.1,0.00010957,2]
[351734032,1738770665402,-858.89,0.00010957,2]
[351734033,1738770665412,-500.0,0.00010957,2]
[351734034,1738770665422,-921.22,0.00010957,2]
[351734035,1738770665433,-500.0,0.00010957,2]
[351734036,1738770665443,-946.31,0.00010957,2]
[351734037,1738770665453,-179.81,0.00010957,2]
[351734038,1738770665462,-500.0,0.00010957,2]
[351734039,1738770665472,-500.0,0.00010957,2]
[351734040,1738770665482,-802.39,0.00010957,2]
[351734041,1738770665492,-1382.83,0.00010957,2]
[351734042,1738770665502,-500.0,0.00010957,2]
[351734043,1738770665513,-1400.23,0.00010957,2]
[351734044,1738770665523,-745.53,0.00010957,2]
[351734045,1738770665533,-707.14,0.00010957,2]
[351734046,1738770665544,-1118.15,0.00010957,2]
[351734047,1738770665554,-826.65,0.00010957,2]
[351734048,1738770665564,-721.92,0.00010957,2]
[351734049,1738770665574,-1111.61,0.00010957,2]